bitfinex/quotes_BTCUSD_20241216
["timestamp","ask_amount","ask_price","bid_price","bid_amount"]
[1734374030126,0.12098055,107330.0,107310.0,1.343897]
[1734374030332,0.20653665,107330.0,107320.0,0.163501]
[1734374030513,0.0817,107320.0,107310.0,0.037189]
[1734374030722,0.28890025,107320.0,107310.0,0.240646]
[1734374030942,0.28890025,107320.0,107310.0,0.223046]
[1734374031124,0.28890025,107320.0,107310.0,0.212846]
[1734374031269,0.0817,107320.0,107310.0,0.2129325]
[1734374031469,0.32941105,107320.0,107310.0,0.2129325]
[1734374031671,0.32941105,107320.0,107290.0,0.07444887]
[1734374031872,0.51336131,107310.0,107290.0,0.07444887]
[1734374032250,0.28898785,107320.0,107300.0,1.089951]
[1734374032426,0.33728785,107330.0,107310.0,0.77821278]
[1734374032624,0.0826,107330.0,107320.0,0.686299]
[1734374032825,0.28986833,107330.0,107320.0,0.631978]
[1734374033104,0.37312262,107330.0,107320.0,0.58582988]
[1734374033314,0.20783318,107340.0,107330.0,0.023]
[1734374033511,0.00056485,107340.0,107330.0,1.1288807]
[1734374034430,0.16553785,107350.0,107330.0,1.1288807]
[1734374034567,0.16553785,107350.0,107340.0,0.762095]
[1734374036178,0.11823785,107350.0,107340.0,0.738985]
[1734374036345,0.11465813,107350.0,107340.0,0.53153]
[1734374037200,0.11465813,107350.0,107340.0,0.328064]
[1734374037485,0.11465813,107350.0,107330.0,0.11785555]
[1734374038546,0.11465813,107350.0,107330.0,0.0718153]
[1734374039127,0.09882364,107350.0,107330.0,0.00056485]
[1734374039327,0.03382363,107350.0,107340.0,0.194605]
[1734374039651,0.03382363,107350.0,107330.0,0.00056485]
[1734374039873,0.03382363,107350.0,107340.0,0.945314]
[1734374040262,0.03382363,107350.0,107340.0,0.594314]
[1734374040467,0.0981,107370.0,107340.0,0.594314]
[1734374040702,0.1923907,107370.0,107340.0,0.594314]
[1734374040908,0.0481,107370.0,107350.0,0.00093151]
[1734374041111,0.000173,107380.0,107360.0,1.01159]
[1734374041363,0.000173,107380.0,107360.0,0.87173187]
[1734374041568,0.04313001,107390.0,107370.0,0.777442]
[1734374041782,0.02449814,107390.0,107370.0,0.586555]
[1734374041998,0.02449814,107390.0,107360.0,0.0942907]
[1734374042214,0.02449814,107390.0,107370.0,0.777442]
[1734374042662,0.09499975,107390.0,107370.0,0.777442]
[1734374042872,0.08916954,107390.0,107370.0,0.77749805]
[1734374043075,0.08823826,107390.0,107380.0,0.233442]
[1734374043290,0.08823826,107390.0,107380.0,0.05180532]
[1734374043502,0.081,107400.0,107370.0,0.00098721]
[1734374043714,0.081,107400.0,107380.0,0.19158796]
[1734374043934,0.081,107400.0,107370.0,0.09434675]
[1734374044144,0.081,107400.0,107380.0,0.367281]
[1734374044357,0.01599999,107400.0,107370.0,0.09434675]
[1734374044580,0.01599999,107400.0,107380.0,0.202501]
[1734374045972,0.06219999,107400.0,107380.0,0.202501]
[1734374046508,0.10247043,107400.0,107370.0,5.605e-05]
[1734374046694,0.05,107390.0,107370.0,5.605e-05]
[1734374048482,0.19676113,107400.0,107370.0,5.605e-05]
[1734374048685,0.10247043,107400.0,107380.0,0.367281]
[1734374048892,0.05247043,107400.0,107380.0,0.367281]
[1734374049336,0.03625812,107410.0,107380.0,0.320519]
[1734374049538,0.19429069,107410.0,107300.0,0.134967]
[1734374049733,0.0822,107400.0,107360.0,0.023]
[1734374049946,0.0822,107400.0,107370.0,0.41574087]
[1734374050149,0.0822,107400.0,107370.0,0.0942907]
[1734374050371,0.0822,107400.0,107380.0,0.32145016]
[1734374050574,0.0822,107400.0,107390.0,0.294688]
[1734374050779,0.0822,107400.0,107380.0,0.320519]
[1734374051123,0.0822,107400.0,107380.0,0.3205751]
[1734374051281,0.0822,107400.0,107390.0,0.100489]
[1734374051685,0.0822,107400.0,107380.0,5.61e-05]
[1734374051893,0.22649069,107400.0,107380.0,5.61e-05]
[1734374052108,0.21603546,107400.0,107380.0,5.61e-05]
[1734374054392,0.15103545,107400.0,107380.0,5.61e-05]
[1734374055429,0.15120825,107400.0,107380.0,5.61e-05]
[1734374056464,0.15120825,107400.0,107350.0,0.08343125]
[1734374056465,0.15120825,107400.0,107350.0,0.03652]
[1734374056735,0.00691756,107400.0,107360.0,0.4148097]
[1734374056948,0.00691756,107400.0,107370.0,0.32145021]
[1734374057151,0.04040523,107410.0,107380.0,0.4148097]
[1734374057319,0.10003999,107440.0,107390.0,0.39755002]
[1734374057666,0.18966687,107440.0,107400.0,0.41574066]
[1734374057868,0.18966687,107440.0,107410.0,0.32144992]
[1734374058042,0.18966687,107440.0,107420.0,0.195336]
[1734374058043,0.04999999,107430.0,107420.0,0.195336]
[1734374058279,0.04999999,107430.0,107410.0,0.320519]
[1734374058652,0.04999999,107430.0,107410.0,0.32057513]
[1734374058861,0.04999999,107430.0,107420.0,0.198713]
[1734374059516,0.0942907,107430.0,107410.0,5.613e-05]
[1734374059958,0.0942907,107420.0,107410.0,5.613e-05]
[1734374060371,0.1418907,107420.0,107410.0,5.613e-05]
[1734374060582,0.2179907,107420.0,107410.0,5.613e-05]
[1734374061001,0.1237,107420.0,107410.0,0.32057513]
[1734374061209,0.1237,107420.0,107410.0,5.613e-05]
[1734374061210,0.2179907,107420.0,107410.0,5.613e-05]
[1734374062263,0.1237,107420.0,107410.0,0.32057513]
[1734374062688,0.1237,107420.0,107410.0,0.273992]
[1734374062905,0.1237,107420.0,107370.0,0.1769]
[1734374063111,0.1237,107420.0,107380.0,0.3692137]
[1734374063329,0.1237,107420.0,107390.0,0.273992]
[1734374063562,0.1237,107420.0,107390.0,0.3682827]
[1734374063702,0.1237,107420.0,107400.0,0.273992]
[1734374064129,0.1237,107420.0,107400.0,0.163558]
[1734374064563,0.1237,107420.0,107390.0,0.0942907]
[1734374064564,0.05869999,107420.0,107390.0,0.0942907]
[1734374064764,0.1442907,107410.0,107370.0,0.00016765]
[1734374066802,0.05,107390.0,107370.0,0.00016765]
[1734374066950,0.1442907,107380.0,107370.0,0.00025405]
[1734374067526,0.2705907,107380.0,107370.0,0.00025405]
[1734374069374,0.20559069,107380.0,107370.0,0.00025405]
[1734374070900,0.1263,107380.0,107370.0,0.00025405]
[1734374071125,0.0777,107380.0,107370.0,0.00025405]
[1734374071554,0.07497433,107380.0,107340.0,0.09796209]
[1734374071802,0.07497433,107380.0,107350.0,0.3682827]
[1734374072021,0.07497433,107380.0,107360.0,0.273992]
[1734374073295,0.2216907,107370.0,107340.0,0.00016774]
[1734374073479,0.0808,107360.0,107340.0,0.00016774]
[1734374073716,0.1750907,107360.0,107340.0,0.00016774]
[1734374074605,0.11009069,107360.0,107340.0,0.00016774]
[1734374074780,0.00093161,107350.0,107310.0,0.06998585]
[1734374075025,0.00093161,107350.0,107320.0,0.3682827]
[1734374075231,0.09522231,107350.0,107310.0,0.00056485]
[1734374076261,0.0769,107340.0,107320.0,0.178513]
[1734374076465,0.00093161,107330.0,107310.0,0.00056485]
[1734374077502,0.00093161,107330.0,107320.0,0.178838]
[1734374077708,0.00093161,107330.0,107310.0,0.00056485]
[1734374078544,0.0769,107340.0,107310.0,0.0957873]
[1734374078963,4e-05,107350.0,107320.0,0.0942907]
[1734374079171,4e-05,107350.0,107320.0,1.3406747]
[1734374079371,4e-05,107350.0,107320.0,0.0942907]
[1734374079581,0.0168716,107360.0,107320.0,0.09522231]
[1734374079814,0.1111623,107360.0,107320.0,0.09522231]
[1734374080624,0.1111623,107360.0,107320.0,0.0942907]
[1734374081905,0.0942907,107350.0,107310.0,0.08345135]
[1734374082141,0.00093161,107340.0,107310.0,0.17774205]
[1734374082764,0.09522231,107340.0,107310.0,0.08345135]
[1734374083602,0.09522231,107340.0,107310.0,8.65e-05]
[1734374083827,0.04656302,107340.0,107310.0,0.09530887]
[1734374084030,0.01593999,107360.0,107320.0,0.38360855]
[1734374084234,0.00056516,107340.0,107330.0,0.428713]
[1734374084435,0.04696033,107360.0,107330.0,0.384656]
[1734374084641,0.04696033,107360.0,107330.0,0.748607]
[1734374084853,0.04579584,107360.0,107320.0,0.16343871]
[1734374085062,0.0482,107370.0,107330.0,2.325076]
[1734374085267,0.00116442,107360.0,107330.0,2.4193667]
[1734374085471,0.00116442,107360.0,107330.0,0.0942907]
[1734374086701,0.00116442,107360.0,107320.0,0.08316516]
[1734374086902,0.00116442,107360.0,107330.0,0.431082]
[1734374087339,0.00116442,107360.0,107330.0,0.0942907]
[1734374089787,0.2192907,107370.0,107340.0,0.414454]
[1734374090088,0.15429069,107370.0,107340.0,0.414454]
[1734374090312,0.0768,107370.0,107340.0,0.414454]
[1734374090524,0.0768,107370.0,107340.0,0.0802]
[1734374090976,0.000173,107380.0,107350.0,0.173944]
[1734374092567,0.0944637,107380.0,107340.0,0.2217907]
[1734374092773,0.00116425,107370.0,107340.0,0.2217907]
[1734374093330,0.000173,107360.0,107340.0,0.2217907]
[1734374093538,0.1401637,107380.0,107340.0,0.2217907]
[1734374093944,0.00069901,107370.0,107340.0,0.2217907]
[1734374094301,0.00069901,107370.0,107340.0,0.1275]
[1734374094572,0.1574627,107380.0,107340.0,0.2217907]
[1734374095600,0.1574627,107380.0,107340.0,0.12751379]
[1734374095784,0.1574627,107380.0,107350.0,0.02639964]
[1734374096016,0.1574627,107380.0,107340.0,0.12751379]
[1734374099060,0.1574627,107380.0,107330.0,0.05001794]
[1734374099255,0.1273,107380.0,107340.0,0.1849]
[1734374099456,0.0942907,107370.0,107340.0,0.1849]
[1734374099907,0.0769,107360.0,107340.0,0.118046]
[1734374101314,0.0769,107360.0,107330.0,0.0943772]
[1734374101663,0.0769,107360.0,107330.0,0.09530872]
[1734374102247,0.0769,107360.0,107330.0,0.0943772]
[1734374102796,0.0769,107360.0,107330.0,0.09530872]
[1734374104150,0.0808,107370.0,107340.0,0.38634293]
[1734374104297,0.0491,107400.0,107350.0,1.03612442]
[1734374104501,0.1433907,107400.0,107360.0,1.30188832]
[1734374104704,0.1433907,107400.0,107350.0,0.0942907]
[1734374104921,0.1433907,107400.0,107360.0,0.375947]
[1734374105134,0.1433907,107400.0,107350.0,0.0942907]
[1734374105135,0.0942907,107390.0,107350.0,0.0942907]
[1734374105915,0.0942907,107390.0,107350.0,0.09445846]
[1734374106681,0.0942907,107390.0,107360.0,1.360812]
[1734374106929,0.0942907,107390.0,107360.0,0.998892]
[1734374107343,0.0942907,107390.0,107360.0,0.7431066]
[1734374107499,0.1774907,107390.0,107350.0,0.09445846]
[1734374107698,0.1774907,107390.0,107360.0,0.998892]
[1734374107924,0.1774907,107390.0,107350.0,0.09445846]
[1734374108122,0.1774907,107390.0,107350.0,0.09538978]
[1734374108324,0.1774907,107390.0,107350.0,0.04849909]
[1734374109359,0.02929069,107390.0,107350.0,0.00016776]
[1734374109561,0.1254,107380.0,107350.0,0.00016776]
[1734374109811,0.2196907,107380.0,107320.0,0.08158502]
[1734374110002,0.077573,107400.0,107340.0,0.0782]
[1734374110207,0.1718637,107400.0,107350.0,0.48975901]
[1734374110451,0.00093153,107390.0,107360.0,0.930723]
[1734374110657,0.00093153,107390.0,107360.0,0.9630357]
[1734374110658,0.00097153,107390.0,107360.0,0.9630357]
[1734374110874,0.00097153,107390.0,107360.0,0.0942907]
[1734374111696,0.00097153,107390.0,107360.0,0.09445857]
[1734374113685,0.00097153,107390.0,107360.0,0.04835193]
[1734374114437,0.15333522,107400.0,107360.0,0.04835193]
[1734374115475,0.15333522,107400.0,107360.0,0.12755193]
[1734374116682,0.15333522,107400.0,107370.0,0.037189]
[1734374117518,0.000173,107390.0,107370.0,0.037189]
[1734374119496,0.08850821,107400.0,107370.0,0.037189]
[1734374119620,0.08850821,107400.0,107360.0,0.07936787]
[1734374121101,0.08850821,107400.0,107360.0,0.00016787]
[1734374121291,0.0461,107390.0,107360.0,0.00016787]
[1734374121505,0.0942907,107380.0,107360.0,0.00016787]
[1734374122538,0.1699907,107380.0,107360.0,0.00016787]
[1734374124516,0.01923351,107370.0,107310.0,0.023]
[1734374124739,0.11352421,107370.0,107330.0,0.00056516]
[1734374124997,0.11352421,107370.0,107330.0,0.09485586]
[1734374125401,0.023,107410.0,107350.0,0.05]
[1734374125702,0.023,107390.0,107340.0,0.05]
[1734374125903,0.0942907,107380.0,107330.0,0.13059668]
[1734374126104,0.0942907,107380.0,107340.0,0.05]
[1734374126659,0.0942907,107380.0,107330.0,0.17395586]
[1734374126856,0.0942907,107380.0,107340.0,0.05]
[1734374127439,0.0942907,107380.0,107330.0,0.17395586]
[1734374127641,0.0942907,107380.0,107340.0,0.05]
[1734374128429,0.1269,107370.0,107340.0,0.05]
[1734374128633,0.2211907,107370.0,107340.0,0.0500864]
[1734374129299,0.15619069,107370.0,107340.0,0.0500864]
[1734374129495,0.15619069,107370.0,107340.0,8.64e-05]
[1734374129702,0.15619069,107370.0,107340.0,0.0500864]
[1734374130513,0.15619069,107370.0,107340.0,8.64e-05]
[1734374130737,0.15619069,107370.0,107340.0,0.0500864]
[1734374131156,0.15619069,107370.0,107340.0,8.64e-05]
[1734374131608,0.15619069,107370.0,107340.0,0.0500864]
[1734374131811,0.15619069,107370.0,107340.0,8.64e-05]
[1734374132222,0.15619069,107370.0,107340.0,0.0500864]
[1734374132471,0.20509069,107370.0,107340.0,8.64e-05]
[1734374132676,0.20509069,107370.0,107340.0,0.0500864]
[1734374132880,0.20509069,107370.0,107340.0,8.64e-05]
[1734374133093,0.1228,107390.0,107350.0,0.2668907]
[1734374133310,0.1228,107390.0,107360.0,0.00093135]
[1734374133733,0.1228,107390.0,107350.0,0.21992427]
[1734374134572,0.15209069,107390.0,107350.0,0.1726]
[1734374135341,0.023,107370.0,107340.0,8.64e-05]
[1734374135539,0.0942907,107360.0,107340.0,8.64e-05]
[1734374137472,0.0942907,107360.0,107310.0,0.0778744]
[1734374137473,0.04656302,107340.0,107310.0,0.0778744]
[1734374137764,0.09485607,107360.0,107320.0,0.09522243]
[1734374138085,0.09155211,107360.0,107320.0,0.09522243]
[1734374138574,0.09155211,107360.0,107320.0,0.0942907]
[1734374138809,0.09155211,107360.0,107310.0,0.1278744]
[1734374139005,4e-05,107340.0,107310.0,0.2221651]
[1734374139385,0.00363708,107330.0,107310.0,0.2221651]
[1734374139586,0.01837707,107350.0,107310.0,0.2221651]
[1734374139792,0.0942907,107350.0,107310.0,0.2221651]
[1734374140405,0.0942907,107350.0,107310.0,0.2222516]
[1734374142470,0.1172907,107340.0,107310.0,8.65e-05]
[1734374142674,0.13887309,107270.0,107260.0,0.0162442]
[1734374142884,0.13887309,107270.0,107260.0,1.9149729]
[1734374143086,0.13887309,107270.0,107260.0,1.9028099]
[1734374143298,0.13887309,107270.0,107260.0,1.7002539]
[1734374143495,0.13120025,107270.0,107260.0,0.1605349]
[1734374143700,0.12479405,107270.0,107260.0,0.1465449]
[1734374143911,0.11926139,107270.0,107260.0,1.1347449]
[1734374144549,0.05426138,107270.0,107260.0,1.1347449]
[1734374145573,0.05426138,107270.0,107260.0,1.1810449]
[1734374145784,0.05426138,107270.0,107260.0,1.2614449]
[1734374146608,0.05426138,107270.0,107260.0,1.2216309]
[1734374147447,0.05426138,107270.0,107260.0,1.1716309]
[1734374147687,0.05426138,107270.0,107260.0,1.2216309]
[1734374148113,0.00056467,107270.0,107260.0,1.16793419]
[1734374148320,0.00056467,107270.0,107260.0,1.24093419]
[1734374148947,0.18608773,107340.0,107300.0,0.05]
[1734374149162,0.26608773,107340.0,107310.0,0.00093178]
[1734374149364,0.26608773,107340.0,107300.0,0.2222907]
[1734374149793,0.08004,107350.0,107310.0,0.4515877]
[1734374149997,0.04659839,107350.0,107320.0,0.07893164]
[1734374150236,0.10759838,107360.0,107320.0,0.26337]
[1734374150454,0.20188908,107360.0,107320.0,0.078]
[1734374152721,0.20206208,107360.0,107320.0,0.03108916]
[1734374152934,0.20206208,107360.0,107320.0,0.03104916]
[1734374153483,0.0942907,107350.0,107320.0,0.03104916]
[1734374154452,0.10777138,107360.0,107320.0,0.12533986]
[1734374154647,0.20206208,107360.0,107320.0,0.12533986]
[1734374157043,0.0942907,107350.0,107310.0,0.17806799]
[1734374157241,0.0942907,107350.0,107310.0,0.27235869]
[1734374159556,0.02929069,107350.0,107310.0,0.27235869]
[1734374160109,0.10777138,107360.0,107320.0,0.0942907]
[1734374160311,0.1744637,107360.0,107320.0,0.09522243]
[1734374160513,0.1744637,107360.0,107330.0,0.0825]
[1734374161738,0.1744637,107360.0,107330.0,0.04573659]
[1734374161933,0.1744637,107360.0,107330.0,0.02638386]
[1734374163188,0.1744637,107360.0,107320.0,0.0942907]
[1734374164337,0.10946369,107360.0,107330.0,0.0815]
[1734374164784,0.10946369,107360.0,107330.0,0.1278]
[1734374165391,0.000173,107360.0,107340.0,0.0942907]
[1734374165626,0.000173,107360.0,107350.0,0.0819]
[1734374165813,0.000173,107360.0,107350.0,0.53602453]
[1734374166013,0.000173,107360.0,107350.0,0.63031523]
[1734374166427,0.000173,107360.0,107350.0,2.25907223]
[1734374166620,0.000173,107360.0,107350.0,0.05170168]
[1734374166819,0.000173,107360.0,107350.0,2.42871599]
[1734374166973,0.000173,107360.0,107350.0,2.38065628]
[1734374167320,0.000173,107360.0,107350.0,2.06359128]
[1734374167745,0.000173,107360.0,107350.0,1.80838328]
[1734374167942,0.000173,107360.0,107350.0,1.79005828]
[1734374168347,0.0001728,107400.0,107350.0,1.79005828]
[1734374168487,0.0001728,107400.0,107360.0,2.36590782]
[1734374168693,0.0001728,107400.0,107370.0,1.339775]
[1734374168900,0.0001728,107400.0,107380.0,0.00093112]
[1734374169135,0.0001728,107400.0,107380.0,0.65903812]
[1734374169338,0.0001728,107400.0,107370.0,0.0942907]
[1734374169558,0.01607279,107410.0,107380.0,0.25145712]
[1734374169781,0.01607279,107410.0,107370.0,0.2158907]
[1734374169782,0.11036349,107410.0,107370.0,0.2158907]
[1734374169992,0.11036349,107410.0,107380.0,0.45778012]
[1734374170161,0.0456,107420.0,107380.0,0.0942907]
[1734374170388,4e-05,107400.0,107380.0,0.09522175]
[1734374171842,0.0246027,107350.0,107340.0,0.073]
[1734374171996,4e-05,107400.0,107350.0,0.023]
[1734374172195,4e-05,107400.0,107360.0,1.9064007]
[1734374172466,4e-05,107400.0,107370.0,0.240713]
[1734374172665,0.07764,107400.0,107370.0,0.3350037]
[1734374172890,0.07764,107400.0,107380.0,0.226986]
[1734374173093,0.07820547,107400.0,107380.0,0.226986]
[1734374173306,0.07820547,107400.0,107360.0,1.509243]
[1734374173492,0.07820547,107400.0,107370.0,0.09522182]
[1734374173697,0.07820547,107400.0,107380.0,0.435641]
[1734374173836,0.07820547,107400.0,107370.0,0.09522182]
[1734374173837,0.0758823,107400.0,107360.0,0.0754]
[1734374174049,0.0758823,107400.0,107370.0,0.85821682]
[1734374174247,0.0758823,107400.0,107380.0,0.424887]
[1734374174463,0.00056547,107400.0,107380.0,0.424887]
[1734374174660,0.1398907,107420.0,107370.0,1.29271]
[1734374174858,0.1398907,107420.0,107380.0,1.9155987]
[1734374175214,0.1398907,107420.0,107390.0,0.93865302]
[1734374175436,0.0942907,107420.0,107400.0,0.249547]
[1734374175651,0.0942907,107420.0,107380.0,0.1756907]
[1734374175874,0.0942907,107420.0,107380.0,0.1766217]
[1734374176084,0.08818428,107420.0,107390.0,0.129618]
[1734374176298,0.08818428,107420.0,107380.0,0.1756907]
[1734374176520,0.08818428,107420.0,107390.0,0.428903]
[1734374176721,0.08818428,107420.0,107390.0,0.224769]
[1734374176976,0.08818428,107420.0,107380.0,0.1756907]
[1734374177165,0.0001728,107400.0,107390.0,0.232471]
[1734374177376,0.08413331,107420.0,107390.0,0.232471]
[1734374177613,0.15856566,107420.0,107390.0,0.215726]
[1734374177859,0.15856566,107420.0,107380.0,0.1756907]
[1734374178067,0.15856566,107420.0,107390.0,0.151886]
[1734374178282,0.15949666,107420.0,107380.0,0.0609786]
[1734374178493,0.082631,107430.0,107390.0,0.1420217]
[1734374178701,0.21833282,107430.0,107390.0,0.1420217]
[1734374178901,0.0942907,107420.0,107370.0,0.04736547]
[1734374179108,0.0942907,107420.0,107380.0,1.86278769]
[1734374179317,0.082631,107410.0,107370.0,0.04736547]
[1734374179550,0.11192169,107410.0,107380.0,0.675192]
[1734374180554,0.11192169,107410.0,107380.0,0.60692]
[1734374180972,0.08346913,107410.0,107390.0,0.02620182]
[1734374181601,0.08346913,107410.0,107370.0,0.22085617]
[1734374181827,0.12488025,107410.0,107380.0,0.153446]
[1734374182269,0.08741112,107400.0,107380.0,0.153446]
[1734374182478,0.18170182,107400.0,107380.0,0.153446]
[1734374183972,0.1252,107400.0,107380.0,0.153446]
[1734374184198,0.11418978,107410.0,107380.0,0.15437712]
[1734374184402,0.13706356,107410.0,107380.0,0.00093112]
[1734374184628,0.13706356,107410.0,107370.0,0.08379659]
[1734374184835,0.13706356,107410.0,107380.0,0.204316]
[1734374185497,0.13706356,107410.0,107380.0,0.00093112]
[1734374185707,0.13799462,107410.0,107330.0,0.26663121]
[1734374185936,0.13856044,107410.0,107350.0,0.0942907]
[1734374186149,0.13856044,107410.0,107360.0,2.00461106]
[1734374186365,0.04426974,107410.0,107370.0,1.2866897]
[1734374186577,0.04333868,107410.0,107380.0,0.397743]
[1734374187015,0.13856044,107410.0,107380.0,0.397743]
[1734374187247,0.04414809,107420.0,107390.0,0.0942907]
[1734374187467,0.0792,107430.0,107390.0,1.47859152]
[1734374187672,0.1734907,107430.0,107400.0,0.00093088]
[1734374187881,0.15899106,107430.0,107400.0,0.181586]
[1734374188134,0.14137376,107430.0,107390.0,0.17715652]
[1734374188341,0.14137376,107430.0,107390.0,0.17808741]
[1734374188561,0.14137376,107430.0,107400.0,0.230095]
[1734374188764,0.14137376,107430.0,107390.0,0.17715652]
[1734374189175,0.14137376,107430.0,107390.0,0.17808741]
[1734374189390,0.07637375,107430.0,107400.0,0.234772]
[1734374189595,0.07544269,107430.0,107390.0,0.17724282]
[1734374189816,0.07561529,107430.0,107400.0,0.134553]
[1734374190020,0.0001726,107430.0,107410.0,0.00093089]
[1734374190234,0.0001726,107430.0,107400.0,0.0942907]
[1734374190462,0.0001726,107430.0,107410.0,0.168836]
[1734374190664,0.0001726,107430.0,107410.0,0.131847]
[1734374190867,0.0001726,107430.0,107400.0,0.0942907]
[1734374191695,0.0001726,107430.0,107410.0,0.420699]
[1734374191901,0.0001726,107430.0,107410.0,0.368284]
[1734374192109,0.0001726,107430.0,107400.0,0.0942907]
[1734374193392,0.0001726,107430.0,107410.0,0.384215]
[1734374193809,0.0001726,107430.0,107410.0,0.5547057]
[1734374194016,0.0001726,107430.0,107410.0,0.1704907]
[1734374194474,0.06359099,107460.0,107420.0,0.3040917]
[1734374194686,0.20244335,107460.0,107420.0,0.1717907]
[1734374194899,0.20012167,107460.0,107420.0,0.1717907]
[1734374195953,0.1442907,107450.0,107420.0,0.0775]
[1734374196189,0.0942907,107450.0,107420.0,0.0775]
[1734374196405,0.10466752,107460.0,107430.0,0.144868]
[1734374196616,0.19895822,107460.0,107420.0,0.1717907]
[1734374196825,0.16796998,107460.0,107440.0,0.02825772]
[1734374197666,0.16796998,107460.0,107440.0,0.02842577]
[1734374199302,0.16796998,107460.0,107440.0,0.00016805]
[1734374199510,0.10296997,107460.0,107440.0,0.00016805]
[1734374201617,0.10314257,107460.0,107440.0,0.00016805]
[1734374202450,0.15134257,107460.0,107440.0,0.00016805]
[1734374202859,0.14645535,107460.0,107440.0,0.00016805]
[1734374204544,0.08145534,107460.0,107440.0,0.00016805]
[1734374206575,0.08029202,107460.0,107440.0,0.00016805]
[1734374206989,0.07387339,107460.0,107440.0,0.00016805]
[1734374207175,0.06601455,107460.0,107440.0,0.00016805]
[1734374207432,0.05968925,107460.0,107440.0,0.00016805]
[1734374207850,0.02776983,107460.0,107440.0,0.00016805]
[1734374208269,0.02776983,107460.0,107440.0,0.08226805]
[1734374208484,0.11339222,107470.0,107440.0,0.08226805]
[1734374208704,0.20768292,107470.0,107440.0,0.08226805]
[1734374209554,0.14268291,107470.0,107440.0,0.08226805]
[1734374209756,0.12737338,107470.0,107440.0,0.08226805]
[1734374210408,0.17437338,107470.0,107440.0,0.08226805]
[1734374212765,0.17001693,107470.0,107440.0,0.08226805]
[1734374214484,0.04816326,107470.0,107440.0,0.08235435]
[1734374214706,0.04833586,107470.0,107440.0,0.08235435]
[1734374215153,0.04369628,107470.0,107440.0,0.17664505]
[1734374215351,0.0001726,107470.0,107450.0,0.73389331]
[1734374215562,0.0001726,107470.0,107460.0,0.0757]
[1734374215764,0.0001726,107470.0,107460.0,0.3876697]
[1734374216617,0.02035844,107480.0,107460.0,0.3876697]
[1734374216785,0.02035844,107480.0,107470.0,0.00093039]
[1734374217016,0.02035844,107480.0,107470.0,0.09522109]
[1734374217152,0.02035844,107480.0,107470.0,0.3372347]
[1734374217784,0.02035844,107480.0,107470.0,0.35177534]
[1734374219340,0.02035844,107480.0,107470.0,0.18403134]
[1734374219513,0.0453728,107510.0,107470.0,0.55650458]
[1734374219514,0.00107723,107510.0,107470.0,0.55650458]
[1734374219746,0.00107723,107510.0,107480.0,0.0942907]
[1734374221011,0.00107723,107510.0,107480.0,0.09445875]
[1734374221759,0.00177592,107510.0,107480.0,0.00016805]
[1734374221964,0.00181592,107510.0,107480.0,0.00016805]
[1734374223154,0.08107977,107520.0,107480.0,0.00016805]
[1734374223375,0.17537047,107520.0,107480.0,0.00016805]
[1734374224461,0.11037046,107520.0,107480.0,0.00016805]
[1734374225398,0.05,107490.0,107400.0,0.00644459]
[1734374225600,0.05,107490.0,107450.0,0.0942907]
[1734374225802,0.05,107490.0,107480.0,8.62e-05]
[1734374226227,0.1755,107500.0,107480.0,8.62e-05]
[1734374226442,0.05,107490.0,107480.0,8.62e-05]
[1734374227066,0.04536185,107490.0,107480.0,8.62e-05]
[1734374228903,0.04993023,107500.0,107480.0,8.62e-05]
[1734374229109,0.04536185,107490.0,107480.0,8.62e-05]
[1734374229513,0.04993023,107500.0,107480.0,8.62e-05]
[1734374229514,0.00093023,107500.0,107480.0,8.62e-05]
[1734374232795,0.05093023,107500.0,107480.0,8.62e-05]
[1734374233002,0.00093023,107500.0,107480.0,0.00101659]
[1734374233209,0.00097023,107500.0,107490.0,0.0804]
[1734374234498,0.0341089,107520.0,107490.0,0.1255]
[1734374234707,0.0341089,107520.0,107500.0,0.08053016]
[1734374235136,0.00056628,107520.0,107500.0,0.17482086]
[1734374236868,0.0341089,107520.0,107500.0,0.0796]
[1734374238739,0.0001724,107510.0,107460.0,0.023]
[1734374238953,0.0001724,107510.0,107490.0,0.0009946]
[1734374239168,0.0001724,107510.0,107490.0,0.1314337]
[1734374239374,0.0001724,107510.0,107490.0,0.0942907]
[1734374239586,0.03453383,107530.0,107490.0,0.1433907]
[1734374239797,0.12882453,107530.0,107490.0,0.1448871]
[1734374240422,0.03453383,107530.0,107490.0,0.1448871]
[1734374240632,0.02120383,107530.0,107490.0,0.1448871]
[1734374241495,0.0001728,107540.0,107500.0,1.1681077]
[1734374241707,0.0001728,107540.0,107510.0,0.08032996]
[1734374241914,0.0001728,107540.0,107510.0,0.17462066]
[1734374242850,0.1757635,107540.0,107510.0,0.0794]
[1734374243136,0.1757635,107540.0,107500.0,0.1225]
[1734374243431,0.1757635,107540.0,107500.0,0.2167907]
[1734374243998,0.0485,107530.0,107500.0,0.0754]
[1734374244194,0.078,107520.0,107490.0,0.13196628]
[1734374244482,0.01299999,107520.0,107490.0,0.22625698]
[1734374244697,0.1427907,107530.0,107490.0,0.22625698]
[1734374246610,0.1427907,107530.0,107490.0,0.13196628]
[1734374246842,0.1427907,107530.0,107490.0,0.08226628]
[1734374247455,0.0817,107520.0,107490.0,0.08226628]
[1734374247673,0.1759907,107520.0,107490.0,0.08226628]
[1734374248074,0.1759907,107520.0,107490.0,0.00056628]
[1734374248284,0.0485,107530.0,107490.0,0.00056628]
[1734374248285,0.0817,107500.0,107490.0,0.00056628]
[1734374248467,0.2232907,107500.0,107490.0,0.00056628]
[1734374248802,0.2462907,107500.0,107490.0,0.00056628]
[1734374249445,0.18129069,107500.0,107490.0,0.00056628]
[1734374249702,0.18129069,107500.0,107490.0,0.00065248]
[1734374250335,0.23129069,107500.0,107490.0,0.00065248]
[1734374250536,0.023,107490.0,107450.0,0.0785]
[1734374250686,0.0942907,107480.0,107450.0,0.07866806]
[1734374252370,0.10192528,107480.0,107450.0,0.07866806]
[1734374252570,0.09728836,107480.0,107450.0,0.07866806]
[1734374252773,0.09732836,107480.0,107450.0,0.07866806]
[1734374253153,0.14362836,107480.0,107450.0,0.07866806]
[1734374253359,0.22152606,107480.0,107450.0,0.07866806]
[1734374254016,0.22152606,107480.0,107450.0,0.00016806]
[1734374254017,0.27152606,107480.0,107450.0,0.00016806]
[1734374254367,0.20652605,107480.0,107450.0,0.00016806]
[1734374259225,0.15388255,107480.0,107450.0,0.00016806]
[1734374259468,0.0942907,107470.0,107450.0,0.00016806]
[1734374259674,0.09334877,107470.0,107450.0,0.00016806]
[1734374262122,0.09334877,107470.0,107450.0,0.00025436]
[1734374264406,0.02834876,107470.0,107450.0,0.00025436]
[1734374268259,0.08905514,107480.0,107450.0,0.07955436]
[1734374268462,0.0944633,107480.0,107450.0,0.12455436]
[1734374269659,0.0942907,107480.0,107450.0,0.12455436]
[1734374269979,0.0942907,107480.0,107450.0,0.07955436]